Workbook

Sheet First trim
B2: A | H2: B | N2: C | T2: D | Z2: E | AF2: BRAKES
B3: factory | C3: LEFT | D3: RIGHT | E3: left | F3: right | G3: symet | H3: factory | I3: LEFT | J3: RIGHT | K3: left | L3: right | M3: symet | N3: factory | O3: LEFT | P3: RIGHT | Q3: left | R3: right | S3: symet | T3: factory | U3: LEFT | V3: RIGHT | W3: left | X3: right | Y3: symet | Z3: factory | AA3: LEFT | AB3: RIGHT | AC3: left | AD3: right | AE3: symet | AF3: factory | AG3: LEFT | AH3: RIGHT | AI3: left | AJ3: right | AK3: symet | AN3: A | AO3: B | AP3: C | AQ3: D | AR3: E | AS3: Brake
A4: 1 | B4: =AN4+$AB$24 -> 8228 | E4: =C4-B4 -> -8228 | F4: =D4-B4 -> -8228 | G4: =C4-D4 -> 0 | H4: =AO4+$AB$24 -> 8129 | K4: =I4-H4 -> -8129 | L4: =J4-H4 -> -8129 | M4: =I4-J4 -> 0 | N4: =AP4+$AB$24 -> 8142 | Q4: =O4-N4 -> -8142 | R4: =P4-N4 -> -8142 | S4: =O4-P4 -> 0 | T4: =AQ4+$AB$24 -> 8310 | W4: =U4-T4 -> -8310 | X4: =V4-T4 -> -8310 | Y4: =U4-V4 -> 0 | Z4: =AR4+$AB$24 -> 8427 | AC4: =AA4-Z4 -> -8427 | AD4: =AB4-Z4 -> -8427 | AE4: =AA4-AB4 -> 0 | AF4: =AS4+$AB$25 -> 8701 | AI4: =(AG4-AF4)+$AB$25 -> -8701 | AJ4: =(AH4-AF4)+$AB$25 -> -8701 | AK4: =AG4-AH4 -> 0 | AM4: 1 | AN4: 8228 | AO4: 8129 | AP4: 8142 | AQ4: 8310 | AR4: 8427 | AS4: 8701
A5: 2 | B5: 8156 | E5: =C5-B5 -> -8156 | F5: =D5-B5 -> -8156 | G5: =C5-D5 -> 0 | H5: 8055 | K5: =I5-H5 -> -8055 | L5: =J5-H5 -> -8055 | M5: =I5-J5 -> 0 | N5: 8070 | Q5: =O5-N5 -> -8070 | R5: =P5-N5 -> -8070 | S5: =O5-P5 -> 0 | T5: 8225 | W5: =U5-T5 -> -8225 | X5: =V5-T5 -> -8225 | Y5: =U5-V5 -> 0 | Z5: 8302 | AC5: =AA5-Z5 -> -8302 | AD5: =AB5-Z5 -> -8302 | AE5: =AA5-AB5 -> 0 | AF5: =AS5+$AB$25 -> 8423 | AI5: -8423 | AJ5: -8423 | AK5: =AG5-AH5 -> 0 | AM5: 2 | AN5: 8156 | AO5: 8055 | AP5: 8070 | AQ5: 8225 | AR5: 8302 | AS5: 8423
A6: 3 | B6: 8132 | E6: -8132 | F6: -8132 | G6: 0 | H6: 8031 | K6: -8031 | L6: -8031 | M6: 0 | N6: 8048 | Q6: -8048 | R6: -8048 | S6: 0 | T6: 8190 | W6: -8190 | X6: -8190 | Y6: 0 | Z6: 8252 | AC6: -8252 | AD6: -8252 | AE6: 0 | AF6: =AS6+$AB$25 -> 8261 | AI6: -8261 | AJ6: -8261 | AK6: 0 | AM6: 3 | AN6: 8132 | AO6: 8031 | AP6: 8048 | AQ6: 8190 | AR6: 8252 | AS6: 8261
A7: 4 | B7: 8111 | E7: =C7-B7 -> -8111 | F7: =D7-B7 -> -8111 | G7: =C7-D7 -> 0 | H7: 8012 | K7: =I7-H7 -> -8012 | L7: =J7-H7 -> -8012 | M7: =I7-J7 -> 0 | N7: 8033 | Q7: =O7-N7 -> -8033 | R7: =P7-N7 -> -8033 | S7: =O7-P7 -> 0 | T7: 8150 | W7: =U7-T7 -> -8150 | X7: =V7-T7 -> -8150 | Y7: =U7-V7 -> 0 | Z7: 8258 | AC7: -8258 | AD7: -8258 | AE7: 0 | AF7: 8288 | AI7: -8288 | AJ7: -8288 | AK7: =AG7-AH7 -> 0 | AM7: 4 | AN7: 8111 | AO7: 8012 | AP7: 8033 | AQ7: 8150 | AR7: 8258 | AS7: 8288
A8: 5 | B8: 8110 | E8: -8110 | F8: -8110 | G8: 0 | H8: 8012 | K8: -8012 | L8: -8012 | M8: 0 | N8: 8035 | Q8: -8035 | R8: -8035 | S8: 0 | T8: 8137 | W8: -8137 | X8: -8137 | Y8: 0 | Z8: 8227 | AC8: -8227 | AD8: -8227 | AE8: 0 | AF8: 8115 | AI8: -8115 | AJ8: -8115 | AK8: 0 | AM8: 5 | AN8: 8110 | AO8: 8012 | AP8: 8035 | AQ8: 8137 | AR8: 8227 | AS8: 8115
A9: 6 | B9: 8152 | E9: -8152 | F9: -8152 | G9: 0 | H9: 8056 | K9: -8056 | L9: -8056 | M9: 0 | N9: 8081 | Q9: -8081 | R9: -8081 | S9: 0 | T9: 8173 | W9: -8173 | X9: -8173 | Y9: 0 | Z9: 8190 | AC9: -8190 | AD9: -8190 | AE9: 0 | AF9: 7956 | AI9: -7956 | AJ9: -7956 | AK9: 0 | AM9: 6 | AN9: 8152 | AO9: 8056 | AP9: 8081 | AQ9: 8173 | AR9: 8190 | AS9: 7956
A10: 7 | B10: 8080 | E10: -8080 | F10: -8080 | G10: 0 | H10: 7996 | K10: -7996 | L10: -7996 | M10: 0 | N10: 8030 | Q10: -8030 | R10: -8030 | S10: 0 | T10: 8145 | W10: -8145 | X10: -8145 | Y10: 0 | Z10: 8152 | AC10: -8152 | AD10: -8152 | AE10: 0 | AF10: 7904 | AI10: -7904 | AJ10: -7904 | AK10: 0 | AM10: 7 | AN10: 8080 | AO10: 7996 | AP10: 8030 | AQ10: 8145 | AR10: 8152 | AS10: 7904
A11: 8 | B11: 8046 | E11: -8046 | F11: -8046 | G11: 0 | H11: 7964 | K11: -7964 | L11: -7964 | M11: 0 | N11: 8002 | Q11: -8002 | R11: -8002 | S11: 0 | T11: 8114 | W11: =U11-T11 -> -8114 | X11: =V11-T11 -> -8114 | Y11: =U11-V11 -> 0 | Z11: 8152 | AC11: -8152 | AD11: -8152 | AE11: 0 | AF11: 7962 | AI11: -7962 | AJ11: -7962 | AK11: 0 | AM11: 8 | AN11: 8046 | AO11: 7964 | AP11: 8002 | AQ11: 8114 | AR11: 8152 | AS11: 7962
A12: 9 | B12: 8008 | E12: -8008 | F12: -8008 | G12: 0 | H12: 7938 | K12: -7938 | L12: =J12-H12 -> -7938 | M12: =I12-J12 -> 0 | N12: 7983 | Q12: -7983 | R12: =P12-N12 -> -7983 | S12: =O12-P12 -> 0 | T12: 8087 | W12: -8087 | X12: -8087 | Y12: 0 | AF12: 7787 | AI12: -7787 | AJ12: -7787 | AK12: 0 | AM12: 9 | AN12: 8008 | AO12: 7938 | AP12: 7983 | AQ12: 8087 | AS12: 7787
A13: 10 | B13: 8012 | E13: -8012 | F13: -8012 | G13: 0 | H13: 7949 | K13: -7949 | L13: =J13-H13 -> -7949 | M13: =I13-J13 -> 0 | N13: 7998 | Q13: -7998 | R13: =P13-N13 -> -7998 | S13: =O13-P13 -> 0 | T13: 8099 | W13: -8099 | X13: -8099 | Y13: 0 | AF13: 7681 | AI13: -7681 | AJ13: -7681 | AK13: 0 | AM13: 10 | AN13: 8012 | AO13: 7949 | AP13: 7998 | AQ13: 8099 | AS13: 7681
A14: 11 | B14: 7894 | E14: -7894 | F14: -7894 | G14: 0 | H14: 7853 | K14: -7853 | L14: -7853 | M14: 0 | N14: 7881 | Q14: -7881 | R14: =P14-N14 -> -7881 | S14: =O14-P14 -> 0 | T14: 7989 | W14: -7989 | X14: -7989 | Y14: 0 | AF14: 7568 | AI14: -7568 | AJ14: -7568 | AK14: 0 | AM14: 11 | AN14: 7894 | AO14: 7853 | AP14: 7881 | AQ14: 7989 | AS14: 7568
A15: 12 | B15: 7817 | E15: -7817 | F15: -7817 | G15: 0 | H15: 7782 | K15: -7782 | L15: -7782 | M15: 0 | N15: 7814 | Q15: -7814 | R15: -7814 | S15: 0 | T15: 7867 | W15: -7867 | X15: -7867 | Y15: 0 | AF15: 7471 | AI15: -7471 | AJ15: -7471 | AK15: 0 | AM15: 12 | AN15: 7817 | AO15: 7782 | AP15: 7814 | AQ15: 7867 | AS15: 7471
A16: 13 | B16: 7771 | E16: -7771 | F16: -7771 | G16: 0 | H16: 7735 | K16: -7735 | L16: -7735 | M16: 0 | N16: 7772 | Q16: -7772 | R16: -7772 | S16: 0 | T16: 7755 | W16: -7755 | X16: -7755 | Y16: 0 | AF16: 7419 | AI16: -7419 | AJ16: -7419 | AK16: 0 | AM16: 13 | AN16: 7771 | AO16: 7735 | AP16: 7772 | AQ16: 7755 | AS16: 7419
A17: 14 | B17: 7653 | E17: =C17-B17 -> -7653 | F17: =D17-B17 -> -7653 | G17: =C17-D17 -> 0 | H17: 7621 | K17: =I17-H17 -> -7621 | L17: =J17-H17 -> -7621 | M17: =I17-J17 -> 0 | N17: 7676 | Q17: =O17-N17 -> -7676 | R17: =P17-N17 -> -7676 | S17: =O17-P17 -> 0 | T17: 7641 | W17: -7641 | X17: -7641 | Y17: 0 | AM17: 14 | AN17: 7653 | AO17: 7621 | AP17: 7676 | AQ17: 7641
A18: 15 | B18: 7591 | E18: -7591 | F18: -7591 | G18: 0 | H18: 7555 | K18: -7555 | L18: -7555 | M18: 0 | N18: 7609 | Q18: -7609 | R18: -7609 | S18: 0 | AM18: 15 | AN18: 7591 | AO18: 7555 | AP18: 7609
A19: 16 | B19: 7569 | E19: -7569 | F19: -7569 | G19: 0 | H19: 7522 | K19: -7522 | L19: -7522 | M19: 0 | N19: 7571 | Q19: -7571 | R19: -7571 | S19: 0 | AM19: 16 | AN19: 7569 | AO19: 7522 | AP19: 7571
A20: 17 | B20: 7331 | E20: -7331 | F20: -7331 | G20: 0 | H20: 7305 | K20: -7305 | L20: -7305 | M20: 0 | N20: 7571 | Q20: -7571 | R20: -7571 | S20: 0 | AM20: 17 | AN20: 7331 | AO20: 7305 | AP20: 7571
A21: 18 | B21: 7222 | E21: -7222 | F21: -7222 | G21: 0 | H21: 7266 | K21: -7266 | L21: -7266 | M21: 0 | N21: 7387 | Q21: -7387 | R21: -7387 | S21: 0 | AM21: 18 | AN21: 7222 | AO21: 7266 | AP21: 7387
W23: AS+ | X23: 30 | Y23: OFFSET
B24: Group average | L24: Setting loops on links | W24: AS | X24: 22 | Y24: Risers
W25: DL | X25: 15 | Y25: Brake
B26: LEFT | G26: RIGHT | L26: LEFT | Q26: RIGHT | W26: L | X26: 0
B27: Stabilo | C27: 3 | D27: 2 | E27: 1 | G27: 1 | H27: 2 | I27: 3 | J27: Stabilo | L27: Stabilo | M27: 3 | N27: 2 | O27: 1 | Q27: 1 | R27: 2 | S27: 3 | T27: Stabilo
C28: =AVERAGE(E15:E19) -> -7680.2 | D28: =AVERAGE(E11:E14) -> -7990 | E28: =AVERAGE(E4:E10) -> -8138.428571 | F28: A | G28: =AVERAGE(F4:F10) -> -8138.428571 | H28: =AVERAGE(F11:F14) -> -7990 | I28: =AVERAGE(F15:F19) -> -7680.2 | M28: DL | N28: DL | O28: DL | P28: A | Q28: DL | R28: DL | S28: DL
B29: =AVERAGE(E20:E21,K20:K21,Q20:Q21) -> -7347 | C29: =AVERAGE(K15:K19,Q15:Q19) -> -7665.7 | D29: =AVERAGE(K11:K14) -> -7926 | E29: =AVERAGE(K4:K10) -> -8041.571429 | F29: B | G29: =AVERAGE(L4:L10) -> -8041.571429 | H29: =AVERAGE(L11:L14) -> -7926 | I29: =AVERAGE(L15:L19,R15:R19) -> -7665.7 | J29: =AVERAGE(F20:F21,L20:L21,R20:R21) -> -7347 | L29: DL | M29: DL | N29: DL | O29: DL | P29: B | Q29: DL | R29: DL | S29: DL | T29: DL
D30: =AVERAGE(Q10:Q13) -> -8003.25 | E30: =AVERAGE(Q4:Q9) -> -8068.166667 | F30: C | G30: =AVERAGE(R4:R10) -> -8062.714286 | H30: =AVERAGE(R11:R14) -> -7966 | N30: DL | O30: DL | P30: C | Q30: DL | R30: DL
C31: =AVERAGE(W14:W17) -> -7813 | D31: =AVERAGE(W10:W13,AC8:AC11) -> -8145.75 | E31: =AVERAGE(W4:W9,AC4:AC7) -> -8242.4 | F31: D | G31: =AVERAGE(X4:X9,AD4:AD7) -> -8242.4 | H31: =AVERAGE(X10:X13,AD8:AD11) -> -8145.75 | I31: =AVERAGE(X14:X17) -> -7813 | M31: DL | N31: DL | O31: DL | P31: D | Q31: DL | R31: DL | S31: DL
